[Event "Titled Tuesday Blitz November 29 Early 2022"]
[White "Akbas, Umut Ata"]
[Black "Bortnyk, Olexandr"]
[WhiteFideId "44572646"]
[BlackFideId "14120828"]
[WhiteElo "2843"]
[BlackElo "3032"]
[Result "0-1"]
[Round "06"]
[TimeControl "180+1"]
[Date "2022.11.30"]
[WhiteClock "0:00:05"]
[BlackClock "0:00:03"]

1. d4 {[%clk 0:03:00]}  d6 {[%clk 0:02:58]} 2. c4 {[%clk 0:03:00]}  e5 {[%clk 0:02:57]} 3. Nc3 {[%clk 0:02:58]}  exd4 {[%clk 0:02:57]} 4. Qxd4 {[%clk 0:02:58]}  Nc6 {[%clk 0:02:58]} 5. Qd2 {[%clk 0:02:56]}  g6 {[%clk 0:02:58]} 6. Nf3 {[%clk 0:02:56]}  Bg7 {[%clk 0:02:58]} 7. e3 {[%clk 0:02:53]}  Nf6 {[%clk 0:02:54]} 8. Be2 {[%clk 0:02:51]}  O-O {[%clk 0:02:54]} 9. O-O {[%clk 0:02:51]}  Re8 {[%clk 0:02:52]} 10. Rd1 {[%clk 0:02:38]}  Bf5 {[%clk 0:02:46]} 11. Bd3 {[%clk 0:02:35]}  Ne4 {[%clk 0:02:40]} 12. Nxe4 {[%clk 0:02:31]}  Bxe4 {[%clk 0:02:41]} 13. Bxe4 {[%clk 0:02:31]}  Rxe4 {[%clk 0:02:42]} 14. Qc2 {[%clk 0:02:24]}  Qe7 {[%clk 0:02:40]} 15. Bd2 {[%clk 0:02:24]}  h6 {[%clk 0:02:00]} 16. Rac1 {[%clk 0:02:24]}  a5 {[%clk 0:01:52]} 17. b3 {[%clk 0:02:18]}  b6 {[%clk 0:01:36]} 18. Bc3 {[%clk 0:02:17]}  Nb4 {[%clk 0:01:21]} 19. Qd2 {[%clk 0:02:14]}  Bxc3 {[%clk 0:01:19]} 20. Rxc3 {[%clk 0:02:15]}  Re8 {[%clk 0:01:16]} 21. Rcc1 {[%clk 0:01:43]}  Nc6 {[%clk 0:01:01]} 22. Qd5 {[%clk 0:01:32]}  Qd7 {[%clk 0:01:00]} 23. a3 {[%clk 0:01:27]}  R4e6 {[%clk 0:00:49]} 24. c5 {[%clk 0:01:14]}  Ne7 {[%clk 0:00:39]} 25. Qc4 {[%clk 0:01:00]}  bxc5 {[%clk 0:00:37]} 26. Qxc5 {[%clk 0:00:59]}  dxc5 {[%clk 0:00:31]} 27. Rxd7 {[%clk 0:00:59]}  Rb8 {[%clk 0:00:31]} 28. Rxc7 {[%clk 0:00:28]}  Rxb3 {[%clk 0:00:31]} 29. h3 {[%clk 0:00:27]}  Rxa3 {[%clk 0:00:29]} 30. R1xc5 {[%clk 0:00:27]}  Nf5 {[%clk 0:00:22]} 31. Ra7 {[%clk 0:00:22]}  Ra1+ {[%clk 0:00:21]} 32. Kh2 {[%clk 0:00:22]}  Ra2 {[%clk 0:00:22]} 33. Kg1 {[%clk 0:00:20]}  Ra1+ {[%clk 0:00:20]} 34. Kh2 {[%clk 0:00:20]}  Ra2 {[%clk 0:00:21]} 35. Kg1 {[%clk 0:00:20]}  Rb6 {[%clk 0:00:14]} 36. Rc8+ {[%clk 0:00:17]}  Kg7 {[%clk 0:00:14]} 37. Rcc7 {[%clk 0:00:17]}  Rf6 {[%clk 0:00:13]} 38. Rc5 {[%clk 0:00:16]}  Ra1+ {[%clk 0:00:12]} 39. Kh2 {[%clk 0:00:16]}  Ra2 {[%clk 0:00:13]} 40. Kg1 {[%clk 0:00:17]}  a4 {[%clk 0:00:13]} 41. Rc4 {[%clk 0:00:17]}  a3 {[%clk 0:00:12]} 42. Rc3 {[%clk 0:00:17]}  Rb6 {[%clk 0:00:11]} 43. Ne5 {[%clk 0:00:16]}  Nd6 {[%clk 0:00:08]} 44. Rd7 {[%clk 0:00:13]}  Rb1+ {[%clk 0:00:04]} 45. Kh2 {[%clk 0:00:13]}  Rxf2 {[%clk 0:00:04]} 46. Rxd6 {[%clk 0:00:10]}  a2 {[%clk 0:00:05]} 47. Ra3 {[%clk 0:00:08]}  a1=Q {[%clk 0:00:05]} 48. Rxa1 {[%clk 0:00:09]}  Rxa1 {[%clk 0:00:06]} 49. Ng4 {[%clk 0:00:09]}  Rf5 {[%clk 0:00:06]} 50. e4 {[%clk 0:00:08]}  Rf4 {[%clk 0:00:06]} 51. e5 {[%clk 0:00:08]}  h5 {[%clk 0:00:06]} 52. Nf6 {[%clk 0:00:09]}  Ra8 {[%clk 0:00:05]} 53. Rd7 {[%clk 0:00:09]}  Rf5 {[%clk 0:00:05]} 54. Re7 {[%clk 0:00:08]}  Ra5 {[%clk 0:00:04]} 55. Nd7 {[%clk 0:00:08]}  Ra7 {[%clk 0:00:04]} 56. e6 {[%clk 0:00:08]}  Rc7 {[%clk 0:00:03]} 57. Kg3 {[%clk 0:00:08]}  Rc3+ {[%clk 0:00:03]} 58. Kh2 {[%clk 0:00:09]}  Re3 {[%clk 0:00:03]} 59. Nc5 {[%clk 0:00:05]}  Rxc5 {[%clk 0:00:03]} 0-1


[Site "https://www.chess.com"]

[Event "Titled Tuesday Blitz November 29 Early 2022"]
[White "Aldokhin, Ivan"]
[Black "Leve, Nitai"]
[WhiteFideId "24115720"]
[BlackFideId "2006898"]
[WhiteElo "2313"]
[BlackElo "2144"]
[Result "1-0"]
[Round "06"]
[TimeControl "180+1"]
[Date "2022.11.30"]
[WhiteClock "0:00:35"]
[BlackClock "0:00:02"]

1. e4 {[%clk 0:03:00]}  e6 {[%clk 0:02:57]} 2. d4 {[%clk 0:03:00]}  d5 {[%clk 0:02:58]} 3. Nd2 {[%clk 0:03:01]}  Nf6 {[%clk 0:02:58]} 4. e5 {[%clk 0:03:00]}  Nfd7 {[%clk 0:02:59]} 5. c3 {[%clk 0:03:01]}  c5 {[%clk 0:02:59]} 6. f4 {[%clk 0:03:01]}  Nc6 {[%clk 0:03:00]} 7. Ne2 {[%clk 0:03:01]}  cxd4 {[%clk 0:03:00]} 8. cxd4 {[%clk 0:03:01]}  Qb6 {[%clk 0:03:00]} 9. Nf3 {[%clk 0:03:01]}  f6 {[%clk 0:03:00]} 10. g3 {[%clk 0:02:57]}  g5 {[%clk 0:02:41]} 11. exf6 {[%clk 0:02:46]}  Nxf6 {[%clk 0:02:35]} 12. Nxg5 {[%clk 0:02:22]}  h6 {[%clk 0:02:18]} 13. Nf3 {[%clk 0:02:20]}  Ne4 {[%clk 0:02:17]} 14. a3 {[%clk 0:02:07]}  Bg7 {[%clk 0:02:01]} 15. Bg2 {[%clk 0:02:02]}  e5 {[%clk 0:01:06]} 16. Nxe5 {[%clk 0:01:48]}  Bxe5 {[%clk 0:00:43]} 17. fxe5 {[%clk 0:01:45]}  O-O {[%clk 0:00:39]} 18. Bf4 {[%clk 0:01:09]}  Qxb2 {[%clk 0:00:28]} 19. O-O {[%clk 0:00:50]}  Bg4 {[%clk 0:00:27]} 20. Bf3 {[%clk 0:00:50]}  Bxf3 {[%clk 0:00:16]} 21. Rxf3 {[%clk 0:00:51]}  Qb6 {[%clk 0:00:08]} 22. Rb1 {[%clk 0:00:50]}  Qd8 {[%clk 0:00:06]} 23. Rxb7 {[%clk 0:00:45]}  Rb8 {[%clk 0:00:06]} 24. Rxb8 {[%clk 0:00:43]}  Qxb8 {[%clk 0:00:07]} 25. Qb3 {[%clk 0:00:43]}  Qxb3 {[%clk 0:00:05]} 26. Rxb3 {[%clk 0:00:43]}  Rc8 {[%clk 0:00:03]} 27. Rb5 {[%clk 0:00:42]}  Ne7 {[%clk 0:00:02]} 28. e6 {[%clk 0:00:39]}  Rc2 {[%clk 0:00:02]} 29. Kf1 {[%clk 0:00:35]} 1-0


[Site "https://www.chess.com"]

[Event "Titled Tuesday Blitz November 29 Early 2022"]
[White "Aloma Vidal, Robert"]
[Black "Jumabayev, Rinat"]
[WhiteFideId "2260409"]
[BlackFideId "13702661"]
[WhiteElo "2663"]
[BlackElo "2900"]
[Result "0-1"]
[Round "06"]
[TimeControl "180+1"]
[Date "2022.11.30"]
[WhiteClock "0:00:01"]
[BlackClock "0:00:05"]

1. e4 {[%clk 0:03:00]}  c6 {[%clk 0:02:56]} 2. d4 {[%clk 0:03:00]}  d5 {[%clk 0:02:57]} 3. e5 {[%clk 0:03:00]}  c5 {[%clk 0:02:56]} 4. dxc5 {[%clk 0:03:01]}  Nc6 {[%clk 0:02:55]} 5. f4 {[%clk 0:03:01]}  e6 {[%clk 0:02:43]} 6. Be3 {[%clk 0:03:01]}  d4 {[%clk 0:02:39]} 7. Bf2 {[%clk 0:03:02]}  Bxc5 {[%clk 0:02:39]} 8. Nd2 {[%clk 0:03:01]}  Nh6 {[%clk 0:02:39]} 9. a3 {[%clk 0:03:00]}  O-O {[%clk 0:02:38]} 10. Ne4 {[%clk 0:02:43]}  Be7 {[%clk 0:02:31]} 11. Bd3 {[%clk 0:02:41]}  b6 {[%clk 0:02:26]} 12. Nf3 {[%clk 0:01:49]}  Bb7 {[%clk 0:02:25]} 13. O-O {[%clk 0:01:49]}  Ng4 {[%clk 0:02:22]} 14. Qe2 {[%clk 0:01:46]}  Qd5 {[%clk 0:01:58]} 15. Nfg5 {[%clk 0:01:17]}  Nxf2 {[%clk 0:01:53]} 16. Rxf2 {[%clk 0:00:58]}  h6 {[%clk 0:01:46]} 17. Nf3 {[%clk 0:00:58]}  Rad8 {[%clk 0:01:44]} 18. Ng3 {[%clk 0:00:58]}  Kh8 {[%clk 0:01:09]} 19. f5 {[%clk 0:00:48]}  exf5 {[%clk 0:01:08]} 20. Nxf5 {[%clk 0:00:48]}  Rde8 {[%clk 0:01:09]} 21. Re1 {[%clk 0:00:40]}  a5 {[%clk 0:00:40]} 22. Qd2 {[%clk 0:00:39]}  Qe6 {[%clk 0:00:27]} 23. N5xd4 {[%clk 0:00:36]}  Nxd4 {[%clk 0:00:28]} 24. Nxd4 {[%clk 0:00:36]}  Qc8 {[%clk 0:00:26]} 25. c3 {[%clk 0:00:35]}  Bc5 {[%clk 0:00:27]} 26. Bb1 {[%clk 0:00:31]}  Qd8 {[%clk 0:00:24]} 27. Qd3 {[%clk 0:00:29]}  g6 {[%clk 0:00:24]} 28. Qh3 {[%clk 0:00:26]}  Qg5 {[%clk 0:00:21]} 29. e6 {[%clk 0:00:20]}  fxe6 {[%clk 0:00:18]} 30. Rxf8+ {[%clk 0:00:16]}  Rxf8 {[%clk 0:00:17]} 31. Qg3 {[%clk 0:00:15]}  Qf6 {[%clk 0:00:09]} 32. Qe3 {[%clk 0:00:12]}  e5 {[%clk 0:00:09]} 33. Qxh6+ {[%clk 0:00:12]}  Kg8 {[%clk 0:00:09]} 34. Qxg6+ {[%clk 0:00:10]}  Qxg6 {[%clk 0:00:09]} 35. Bxg6 {[%clk 0:00:10]}  exd4 {[%clk 0:00:10]} 36. b4 {[%clk 0:00:10]}  axb4 {[%clk 0:00:08]} 37. axb4 {[%clk 0:00:10]}  Bd6 {[%clk 0:00:08]} 38. cxd4 {[%clk 0:00:10]}  Bxb4 {[%clk 0:00:09]} 39. Rb1 {[%clk 0:00:10]}  Bc3 {[%clk 0:00:09]} 40. h4 {[%clk 0:00:06]}  Bxd4+ {[%clk 0:00:09]} 41. Kh2 {[%clk 0:00:06]}  Rf2 {[%clk 0:00:09]} 42. Kh3 {[%clk 0:00:02]}  Bxg2+ {[%clk 0:00:04]} 43. Kg3 {[%clk 0:00:02]}  Bb7 {[%clk 0:00:05]} 44. Bd3 {[%clk 0:00:01]}  Rf3+ {[%clk 0:00:04]} 45. Kg4 {[%clk 0:00:01]}  Rxd3 {[%clk 0:00:05]} 0-1


[Site "https://www.chess.com"]

[Event "Titled Tuesday Blitz November 29 Early 2022"]
[White "Ambartsumova, Karina"]
[Black "Dudzinski, Pawel"]
[WhiteFideId "4166299"]
[BlackFideId "1117890"]
[WhiteElo "2319"]
[BlackElo "2086"]
[Result "1-0"]
[Round "06"]
[TimeControl "180+1"]
[Date "2022.11.30"]
[WhiteClock "0:01:44"]
[BlackClock "0:01:09"]

1. Nf3 {[%clk 0:03:00]}  g6 {[%clk 0:02:17]} 2. g3 {[%clk 0:02:59]}  Bg7 {[%clk 0:02:18]} 3. Bg2 {[%clk 0:02:59]}  e5 {[%clk 0:02:17]} 4. c4 {[%clk 0:02:51]}  Nc6 {[%clk 0:02:17]} 5. Nc3 {[%clk 0:02:51]}  d6 {[%clk 0:02:17]} 6. O-O {[%clk 0:02:50]}  Be6 {[%clk 0:02:18]} 7. d3 {[%clk 0:02:49]}  h6 {[%clk 0:02:18]} 8. Rb1 {[%clk 0:02:46]}  f5 {[%clk 0:02:19]} 9. Ne1 {[%clk 0:02:46]}  Qd7 {[%clk 0:02:19]} 10. b4 {[%clk 0:02:44]}  Nf6 {[%clk 0:02:19]} 11. b5 {[%clk 0:02:44]}  Nd8 {[%clk 0:02:19]} 12. Nc2 {[%clk 0:02:40]}  d5 {[%clk 0:02:15]} 13. cxd5 {[%clk 0:02:33]}  Nxd5 {[%clk 0:02:16]} 14. Bb2 {[%clk 0:02:23]}  O-O {[%clk 0:02:14]} 15. Nxd5 {[%clk 0:01:58]}  Bxd5 {[%clk 0:02:12]} 16. Bxd5+ {[%clk 0:01:52]}  Qxd5 {[%clk 0:02:13]} 17. Ne3 {[%clk 0:01:52]}  Qxa2 {[%clk 0:02:11]} 18. Nc4 {[%clk 0:01:50]}  e4 {[%clk 0:01:09]} 19. Ra1 {[%clk 0:01:45]}  Bxb2 {[%clk 0:01:09]} 20. Rxa2 {[%clk 0:01:44]} 1-0


[Site "https://www.chess.com"]

[Event "Titled Tuesday Blitz November 29 Early 2022"]
[White "Aqib Javaid Butt"]
[Black "Herman, Daniel"]
[WhiteFideId "7801262"]
[BlackFideId "30935008"]
[WhiteElo "1659"]
[BlackElo "1897"]
[Result "1/2-1/2"]
[Round "06"]
[TimeControl "180+1"]
[Date "2022.11.30"]
[WhiteClock "0:00:38"]
[BlackClock "0:00:19"]

1. d4 {[%clk 0:02:59]}  g6 {[%clk 0:03:00]} 2. e3 {[%clk 0:03:00]}  Bg7 {[%clk 0:03:00]} 3. Nf3 {[%clk 0:02:58]}  Nf6 {[%clk 0:03:00]} 4. Bd3 {[%clk 0:02:50]}  O-O {[%clk 0:03:00]} 5. O-O {[%clk 0:02:51]}  d6 {[%clk 0:03:00]} 6. b3 {[%clk 0:02:52]}  e5 {[%clk 0:02:58]} 7. dxe5 {[%clk 0:02:52]}  Ng4 {[%clk 0:02:58]} 8. Bb2 {[%clk 0:02:51]}  Nc6 {[%clk 0:02:58]} 9. Be2 {[%clk 0:02:49]}  Ngxe5 {[%clk 0:02:53]} 10. Qc1 {[%clk 0:02:48]}  Bg4 {[%clk 0:02:42]} 11. Nxe5 {[%clk 0:02:32]}  Bxe2 {[%clk 0:02:35]} 12. Nxc6 {[%clk 0:02:32]}  bxc6 {[%clk 0:02:12]} 13. Bxg7 {[%clk 0:02:28]}  Kxg7 {[%clk 0:02:13]} 14. Re1 {[%clk 0:02:21]}  Ba6 {[%clk 0:02:06]} 15. Qb2+ {[%clk 0:02:19]}  Qf6 {[%clk 0:02:06]} 16. Qxf6+ {[%clk 0:02:18]}  Kxf6 {[%clk 0:02:07]} 17. c4 {[%clk 0:02:19]}  c5 {[%clk 0:02:03]} 18. Nc3 {[%clk 0:02:19]}  Bb7 {[%clk 0:02:02]} 19. Rad1 {[%clk 0:02:19]}  Bc6 {[%clk 0:01:59]} 20. e4 {[%clk 0:02:18]}  Rfe8 {[%clk 0:01:56]} 21. Nd5+ {[%clk 0:02:17]}  Bxd5 {[%clk 0:01:55]} 22. exd5 {[%clk 0:02:12]}  a5 {[%clk 0:01:49]} 23. a4 {[%clk 0:02:01]}  Rab8 {[%clk 0:01:47]} 24. Rxe8 {[%clk 0:02:00]}  Rxe8 {[%clk 0:01:48]} 25. Kf1 {[%clk 0:01:57]}  h5 {[%clk 0:01:33]} 26. Rd3 {[%clk 0:01:54]}  Re5 {[%clk 0:01:30]} 27. f3 {[%clk 0:01:37]}  h4 {[%clk 0:01:27]} 28. Kf2 {[%clk 0:01:35]}  g5 {[%clk 0:01:26]} 29. Re3 {[%clk 0:01:28]}  Rxe3 {[%clk 0:01:23]} 30. Kxe3 {[%clk 0:01:29]}  Ke5 {[%clk 0:01:23]} 31. g3 {[%clk 0:01:22]}  hxg3 {[%clk 0:00:54]} 32. hxg3 {[%clk 0:01:20]}  Kf5 {[%clk 0:00:42]} 33. Kd3 {[%clk 0:01:07]}  f6 {[%clk 0:00:36]} 34. Ke3 {[%clk 0:01:03]}  Ke5 {[%clk 0:00:34]} 35. f4+ {[%clk 0:00:54]}  gxf4+ {[%clk 0:00:32]} 36. gxf4+ {[%clk 0:00:53]}  Kf5 {[%clk 0:00:32]} 37. Kf3 {[%clk 0:00:53]}  Kg6 {[%clk 0:00:29]} 38. Kg4 {[%clk 0:00:51]}  f5+ {[%clk 0:00:28]} 39. Kg3 {[%clk 0:00:47]}  Kg7 {[%clk 0:00:22]} 40. Kg2 {[%clk 0:00:41]}  Kg6 {[%clk 0:00:20]} 41. Kg3 {[%clk 0:00:38]}  Kh7 {[%clk 0:00:19]} 1/2-1/2


[Site "https://www.chess.com"]

[Event "Titled Tuesday Blitz November 29 Early 2022"]
[White "Arabidze, Meri"]
[Black "Yurasova, Daria"]
[WhiteFideId "13604040"]
[BlackFideId "34146919"]
[WhiteElo "2403"]
[BlackElo "2097"]
[Result "0-1"]
[Round "06"]
[TimeControl "180+1"]
[Date "2022.11.30"]
[WhiteClock "0:00:08"]
[BlackClock "0:00:13"]

1. Nf3 {[%clk 0:03:00]}  Nf6 {[%clk 0:02:59]} 2. b3 {[%clk 0:03:01]}  e6 {[%clk 0:02:58]} 3. Bb2 {[%clk 0:03:02]}  Be7 {[%clk 0:02:56]} 4. c4 {[%clk 0:03:01]}  c5 {[%clk 0:02:56]} 5. e3 {[%clk 0:03:01]}  b6 {[%clk 0:02:57]} 6. d4 {[%clk 0:03:01]}  cxd4 {[%clk 0:02:55]} 7. exd4 {[%clk 0:03:01]}  d5 {[%clk 0:02:55]} 8. Bd3 {[%clk 0:03:00]}  Bb7 {[%clk 0:02:55]} 9. O-O {[%clk 0:03:01]}  Nbd7 {[%clk 0:02:56]} 10. Nbd2 {[%clk 0:03:01]}  O-O {[%clk 0:02:57]} 11. Ne5 {[%clk 0:03:01]}  Re8 {[%clk 0:02:56]} 12. Qe2 {[%clk 0:03:00]}  Nf8 {[%clk 0:02:56]} 13. f4 {[%clk 0:02:58]}  dxc4 {[%clk 0:02:56]} 14. bxc4 {[%clk 0:02:57]}  Ng6 {[%clk 0:02:56]} 15. Nb3 {[%clk 0:02:44]}  Rc8 {[%clk 0:02:53]} 16. f5 {[%clk 0:02:38]}  exf5 {[%clk 0:02:51]} 17. Bxf5 {[%clk 0:02:38]}  Rb8 {[%clk 0:02:51]} 18. Rae1 {[%clk 0:02:25]}  Bf8 {[%clk 0:02:47]} 19. Qc2 {[%clk 0:02:19]}  Qc7 {[%clk 0:02:43]} 20. Bxg6 {[%clk 0:02:02]}  hxg6 {[%clk 0:02:43]} 21. Qf2 {[%clk 0:01:53]}  Rbd8 {[%clk 0:02:26]} 22. Kh1 {[%clk 0:01:48]}  Bd6 {[%clk 0:02:26]} 23. Qh4 {[%clk 0:01:29]}  Re7 {[%clk 0:02:18]} 24. Re3 {[%clk 0:01:10]}  Bc8 {[%clk 0:02:04]} 25. Rfe1 {[%clk 0:00:50]}  Rde8 {[%clk 0:02:04]} 26. Nd2 {[%clk 0:00:49]}  Be6 {[%clk 0:01:52]} 27. Ndf3 {[%clk 0:00:47]}  Bf5 {[%clk 0:01:47]} 28. Ng5 {[%clk 0:00:46]}  Rc8 {[%clk 0:00:52]} 29. g4 {[%clk 0:00:44]}  Qb7+ {[%clk 0:00:42]} 30. Kg1 {[%clk 0:00:44]}  Bxe5 {[%clk 0:00:24]} 31. gxf5 {[%clk 0:00:44]}  Bd6 {[%clk 0:00:19]} 32. fxg6 {[%clk 0:00:44]}  Rxe3 {[%clk 0:00:18]} 33. Rxe3 {[%clk 0:00:44]}  fxg6 {[%clk 0:00:18]} 34. d5 {[%clk 0:00:34]}  Bc5 {[%clk 0:00:18]} 35. Bd4 {[%clk 0:00:31]}  Qc7 {[%clk 0:00:18]} 36. Ne6 {[%clk 0:00:29]}  Bxd4 {[%clk 0:00:19]} 37. Qxd4 {[%clk 0:00:22]}  Qxc4 {[%clk 0:00:18]} 38. Qxc4 {[%clk 0:00:18]}  Rxc4 {[%clk 0:00:19]} 39. Rd3 {[%clk 0:00:18]}  Rc1+ {[%clk 0:00:17]} 40. Kg2 {[%clk 0:00:18]}  Rc2+ {[%clk 0:00:18]} 41. Kh3 {[%clk 0:00:17]}  Kf7 {[%clk 0:00:16]} 42. Ng5+ {[%clk 0:00:16]}  Ke7 {[%clk 0:00:16]} 43. d6+ {[%clk 0:00:14]}  Kd7 {[%clk 0:00:17]} 44. Nf3 {[%clk 0:00:12]}  Rc5 {[%clk 0:00:14]} 45. Nh4 {[%clk 0:00:11]}  Rd5 {[%clk 0:00:13]} 46. Ra3 {[%clk 0:00:11]}  a5 {[%clk 0:00:13]} 47. Nxg6 {[%clk 0:00:11]}  Kxd6 {[%clk 0:00:13]} 48. Nf4 {[%clk 0:00:11]}  Rd4 {[%clk 0:00:13]} 49. Ne2 {[%clk 0:00:09]}  Rb4 {[%clk 0:00:13]} 50. Ng3 {[%clk 0:00:09]}  a4 {[%clk 0:00:12]} 51. Nf5+ {[%clk 0:00:09]}  Ke6 {[%clk 0:00:13]} 52. Nxg7+ {[%clk 0:00:10]}  Kf7 {[%clk 0:00:13]} 53. Nf5 {[%clk 0:00:10]}  b5 {[%clk 0:00:13]} 54. Ng3 {[%clk 0:00:10]}  Rb2 {[%clk 0:00:13]} 55. Nf5 {[%clk 0:00:09]}  Kg6 {[%clk 0:00:12]} 56. Nd4 {[%clk 0:00:09]}  Nd5 {[%clk 0:00:11]} 57. Rg3+ {[%clk 0:00:07]}  Kf6 {[%clk 0:00:11]} 58. Rg2 {[%clk 0:00:07]}  Nf4+ {[%clk 0:00:11]} 59. Kg4 {[%clk 0:00:06]}  Nxg2 {[%clk 0:00:12]} 60. h4 {[%clk 0:00:06]}  Ne3+ {[%clk 0:00:12]} 61. Kf4 {[%clk 0:00:06]}  Nd5+ {[%clk 0:00:13]} 62. Ke4 {[%clk 0:00:07]}  Nc3+ {[%clk 0:00:13]} 63. Kd3 {[%clk 0:00:07]}  Nxa2 {[%clk 0:00:13]} 64. h5 {[%clk 0:00:08]}  Kg5 {[%clk 0:00:13]} 0-1


[Site "https://www.chess.com"]

[Event "Titled Tuesday Blitz November 29 Early 2022"]
[White "Begunov, Konstantin"]
[Black "Von Buelow, Georg"]
[WhiteFideId "4118510"]
[BlackFideId "4620658"]
[WhiteElo "2140"]
[BlackElo "2205"]
[Result "0-1"]
[Round "06"]
[TimeControl "180+1"]
[Date "2022.11.30"]
[WhiteClock "0:00:42"]
[BlackClock "0:00:14"]

1. d4 {[%clk 0:03:00]}  Nf6 {[%clk 0:02:54]} 2. c4 {[%clk 0:03:00]}  Nc6 {[%clk 0:02:49]} 3. Nc3 {[%clk 0:03:00]}  e5 {[%clk 0:02:48]} 4. d5 {[%clk 0:03:00]}  Ne7 {[%clk 0:02:48]} 5. h4 {[%clk 0:03:00]}  h5 {[%clk 0:02:48]} 6. Nf3 {[%clk 0:02:59]}  Ng6 {[%clk 0:02:47]} 7. Ng5 {[%clk 0:02:54]}  Bc5 {[%clk 0:02:37]} 8. g3 {[%clk 0:02:17]}  d6 {[%clk 0:01:50]} 9. e3 {[%clk 0:02:16]}  a5 {[%clk 0:01:44]} 10. a3 {[%clk 0:02:04]}  Bd7 {[%clk 0:01:33]} 11. b3 {[%clk 0:02:03]}  Ng4 {[%clk 0:01:20]} 12. Bd3 {[%clk 0:01:31]}  Ne7 {[%clk 0:01:09]} 13. Bb2 {[%clk 0:01:25]}  Ba7 {[%clk 0:01:02]} 14. Qe2 {[%clk 0:01:23]}  f6 {[%clk 0:00:58]} 15. Ne6 {[%clk 0:01:15]}  Bxe6 {[%clk 0:00:51]} 16. dxe6 {[%clk 0:01:16]}  c6 {[%clk 0:00:51]} 17. O-O-O {[%clk 0:01:05]}  f5 {[%clk 0:00:39]} 18. e4 {[%clk 0:00:54]}  Nxf2 {[%clk 0:00:34]} 19. exf5 {[%clk 0:00:54]}  Nxh1 {[%clk 0:00:22]} 20. Rxh1 {[%clk 0:00:54]}  Qb6 {[%clk 0:00:21]} 21. Ne4 {[%clk 0:00:46]}  O-O-O {[%clk 0:00:20]} 22. Kc2 {[%clk 0:00:45]}  d5 {[%clk 0:00:16]} 23. Ng5 {[%clk 0:00:44]}  e4 {[%clk 0:00:14]} 24. Nf7 {[%clk 0:00:44]}  exd3+ {[%clk 0:00:14]} 25. Qxd3 {[%clk 0:00:45]}  dxc4 {[%clk 0:00:13]} 26. bxc4 {[%clk 0:00:44]}  Rxd3 {[%clk 0:00:12]} 27. Kxd3 {[%clk 0:00:45]}  Qxb2 {[%clk 0:00:12]} 28. Nxh8 {[%clk 0:00:44]}  Qd4+ {[%clk 0:00:12]} 29. Kc2 {[%clk 0:00:44]}  Qe4+ {[%clk 0:00:13]} 30. Kc3 {[%clk 0:00:44]}  Qxh1 {[%clk 0:00:13]} 31. f6 {[%clk 0:00:44]}  Qf3+ {[%clk 0:00:13]} 32. Kc2 {[%clk 0:00:43]}  Qxf6 {[%clk 0:00:14]} 33. Nf7 {[%clk 0:00:42]}  Qxe6 {[%clk 0:00:14]} 0-1


[Site "https://www.chess.com"]

[Event "Titled Tuesday Blitz November 29 Early 2022"]
[White "Bok, Benjamin"]
[Black "Manelyuk, Daniil"]
[WhiteFideId "1017063"]
[BlackFideId "44173920"]
[WhiteElo "2658"]
[BlackElo "2209"]
[Result "1-0"]
[Round "06"]
[TimeControl "180+1"]
[Date "2022.11.30"]
[WhiteClock "0:00:08"]
[BlackClock "0:00:05"]

1. d4 {[%clk 0:03:00]}  Nf6 {[%clk 0:02:57]} 2. c4 {[%clk 0:03:01]}  g6 {[%clk 0:02:58]} 3. g3 {[%clk 0:03:01]}  Bg7 {[%clk 0:02:56]} 4. Bg2 {[%clk 0:03:02]}  O-O {[%clk 0:02:56]} 5. Nc3 {[%clk 0:03:02]}  c6 {[%clk 0:02:54]} 6. e4 {[%clk 0:03:02]}  d6 {[%clk 0:02:54]} 7. Nf3 {[%clk 0:03:02]}  Nbd7 {[%clk 0:02:53]} 8. O-O {[%clk 0:03:02]}  Re8 {[%clk 0:02:51]} 9. h3 {[%clk 0:02:59]}  e5 {[%clk 0:02:50]} 10. Re1 {[%clk 0:02:57]}  Qc7 {[%clk 0:02:49]} 11. Be3 {[%clk 0:02:55]}  b6 {[%clk 0:02:45]} 12. Qc2 {[%clk 0:02:53]}  Bb7 {[%clk 0:02:45]} 13. Rad1 {[%clk 0:02:53]}  h6 {[%clk 0:02:39]} 14. a3 {[%clk 0:02:51]}  Rad8 {[%clk 0:02:38]} 15. b3 {[%clk 0:02:48]}  a6 {[%clk 0:02:38]} 16. d5 {[%clk 0:02:33]}  c5 {[%clk 0:02:33]} 17. Rb1 {[%clk 0:02:27]}  Rf8 {[%clk 0:02:31]} 18. Bf1 {[%clk 0:01:22]}  Bc8 {[%clk 0:01:45]} 19. b4 {[%clk 0:01:21]}  Nh5 {[%clk 0:01:26]} 20. Nh4 {[%clk 0:01:17]}  Kh7 {[%clk 0:01:19]} 21. Be2 {[%clk 0:01:11]}  Bf6 {[%clk 0:01:09]} 22. Ng2 {[%clk 0:01:01]}  Ng7 {[%clk 0:01:09]} 23. h4 {[%clk 0:00:37]}  Be7 {[%clk 0:01:09]} 24. bxc5 {[%clk 0:00:33]}  Nxc5 {[%clk 0:01:07]} 25. Na4 {[%clk 0:00:33]}  f5 {[%clk 0:00:38]} 26. Nxc5 {[%clk 0:00:29]}  bxc5 {[%clk 0:00:35]} 27. Bd3 {[%clk 0:00:30]}  f4 {[%clk 0:00:20]} 28. gxf4 {[%clk 0:00:29]}  Bh3 {[%clk 0:00:19]} 29. fxe5 {[%clk 0:00:26]}  dxe5 {[%clk 0:00:20]} 30. f4 {[%clk 0:00:05]}  Bxg2 {[%clk 0:00:18]} 31. Qxg2 {[%clk 0:00:06]}  exf4 {[%clk 0:00:19]} 32. e5 {[%clk 0:00:07]}  Nf5 {[%clk 0:00:13]} 33. Bxf4 {[%clk 0:00:06]}  Bxh4 {[%clk 0:00:13]} 34. Rf1 {[%clk 0:00:04]}  Qg7 {[%clk 0:00:12]} 35. Rb6 {[%clk 0:00:02]}  Rde8 {[%clk 0:00:07]} 36. Qg4 {[%clk 0:00:02]}  Bd8 {[%clk 0:00:06]} 37. Rf2 {[%clk 0:00:02]}  Bxb6 {[%clk 0:00:05]} 38. Rg2 {[%clk 0:00:02]}  Kh8 {[%clk 0:00:05]} 39. Qxg6 {[%clk 0:00:02]}  Qxg6 {[%clk 0:00:05]} 40. Rxg6 {[%clk 0:00:03]}  Ng7 {[%clk 0:00:06]} 41. Rxh6+ {[%clk 0:00:03]}  Kg8 {[%clk 0:00:06]} 42. Bh7+ {[%clk 0:00:03]}  Kf7 {[%clk 0:00:07]} 43. Rxb6 {[%clk 0:00:03]}  Re7 {[%clk 0:00:02]} 44. Bg5 {[%clk 0:00:02]}  Ra7 {[%clk 0:00:02]} 45. Bg6+ {[%clk 0:00:02]}  Kg8 {[%clk 0:00:02]} 46. e6 {[%clk 0:00:03]}  Nxe6 {[%clk 0:00:02]} 47. dxe6 {[%clk 0:00:03]}  Rg7 {[%clk 0:00:02]} 48. e7 {[%clk 0:00:04]}  Rc8 {[%clk 0:00:03]} 49. e8=Q+ {[%clk 0:00:04]}  Rxe8 {[%clk 0:00:03]} 50. Bxe8 {[%clk 0:00:05]}  Rxg5+ {[%clk 0:00:04]} 51. Kf2 {[%clk 0:00:06]}  Rf5+ {[%clk 0:00:04]} 52. Kg3 {[%clk 0:00:05]}  Re5 {[%clk 0:00:04]} 53. Bc6 {[%clk 0:00:05]}  Re3+ {[%clk 0:00:05]} 54. Kf4 {[%clk 0:00:05]}  Rxa3 {[%clk 0:00:05]} 55. Bd5+ {[%clk 0:00:06]}  Kf8 {[%clk 0:00:06]} 56. Ke5 {[%clk 0:00:07]}  Ke7 {[%clk 0:00:06]} 57. Rb7+ {[%clk 0:00:08]}  Kf8 {[%clk 0:00:05]} 58. Kd6 {[%clk 0:00:08]}  Ra5 {[%clk 0:00:05]} 59. Rf7+ {[%clk 0:00:07]}  Ke8 {[%clk 0:00:05]} 60. Ra7 {[%clk 0:00:08]}  Ra1 {[%clk 0:00:05]} 61. Ra8# {[%clk 0:00:08]} 1-0


[Site "https://www.chess.com"]